[Event "Early-Titled-Tuesday-Blitz-October-24-2023"]
[Site "Chess.com"]
[Date "2023.10.24"]
[Round "1"]
[White "Skatchkov_V"]
[Black "tomobeast"]
[Result "0-1"]
[WhiteElo "2535"]
[BlackElo "2238"]
[TimeControl "180+1"]
[EndTime "8:08:14 PDT"]
[Termination "tomobeast won by resignation"]

1. d4 {[%clk 0:02:54.7]} 1... d5 {[%clk 0:02:58.7]} 2. c4 {[%clk 0:02:54.6]}
2... e6 {[%clk 0:02:58.3]} 3. Nf3 {[%clk 0:02:48.7]} 3... c6 {[%clk 0:02:55.7]}
4. g3 {[%clk 0:02:45.4]} 4... f5 {[%clk 0:02:54.4]} 5. Bg2 {[%clk 0:02:44.9]}
5... Nf6 {[%clk 0:02:46.5]} 6. O-O {[%clk 0:02:44.4]} 6... Bd6 {[%clk
0:02:46.6]} 7. b3 {[%clk 0:02:44.4]} 7... Ne4 {[%clk 0:02:39.7]} 8. Ba3 {[%clk
0:02:43.5]} 8... Bc7 {[%clk 0:02:32.4]} 9. Nbd2 {[%clk 0:02:29.3]} 9... Nd7
{[%clk 0:02:30.6]} 10. Nxe4 {[%clk 0:02:05.4]} 10... dxe4 {[%clk 0:02:29.5]} 11.
Ne1 {[%clk 0:02:06.1]} 11... Nf6 {[%clk 0:02:27.7]} 12. f3 {[%clk 0:02:05.9]}
12... e5 {[%clk 0:02:15.6]} 13. fxe4 {[%clk 0:01:55.1]} 13... Nxe4 {[%clk
0:02:15.3]} 14. e3 {[%clk 0:01:51.2]} 14... Be6 {[%clk 0:02:09.4]} 15. Nf3
{[%clk 0:01:43.4]} 15... Qf6 {[%clk 0:01:47.6]} 16. Nxe5 {[%clk 0:01:07.9]}
16... Bxe5 {[%clk 0:01:47.1]} 17. Bxe4 {[%clk 0:01:07.4]} 17... O-O-O {[%clk
0:01:35.7]} 18. Bg2 {[%clk 0:01:00.2]} 18... Qg5 {[%clk 0:01:31.2]} 19. Qf3
{[%clk 0:00:53.4]} 19... Bc7 {[%clk 0:01:18.6]} 20. Rad1 {[%clk 0:00:49.8]}
20... Rhe8 {[%clk 0:01:18.4]} 21. Kh1 {[%clk 0:00:45.6]} 21... Bf7 {[%clk
0:01:16]} 22. Qxf5+ {[%clk 0:00:37.9]} 22... Qxf5 {[%clk 0:01:16.9]} 23. Rxf5
{[%clk 0:00:38.3]} 23... Bg6 {[%clk 0:01:17.8]} 24. Rf2 {[%clk 0:00:35.3]} 24...
Rxe3 {[%clk 0:01:17.6]} 25. d5 {[%clk 0:00:30.1]} 25... cxd5 {[%clk 0:01:13]}
26. cxd5 {[%clk 0:00:26.8]} 26... Bb6 {[%clk 0:01:13.2]} 27. d6 {[%clk
0:00:21.3]} 27... Rxb3 {[%clk 0:01:03.2]} 28. axb3 {[%clk 0:00:17.5]} 28... Bxf2
{[%clk 0:01:03.3]} 29. d7+ {[%clk 0:00:16.4]} 29... Rxd7 {[%clk 0:01:00.9]} 30.
Rc1+ {[%clk 0:00:14.2]} 30... Kd8 {[%clk 0:01:00.1]} 31. Rf1 {[%clk 0:00:12.7]}
31... Rd2 {[%clk 0:00:56.6]} 32. Bb4 {[%clk 0:00:12.3]} 32... Rb2 {[%clk
0:00:52.3]} 33. Bd5 {[%clk 0:00:08.9]} 33... Rxb3 {[%clk 0:00:48.1]} 34. Ba5+
{[%clk 0:00:05.9]} 34... b6 {[%clk 0:00:43.8]} 35. Rd1 {[%clk 0:00:05.7]} 35...
Rd3 {[%clk 0:00:22.1]} 36. Rxd3 {[%clk 0:00:05.7]} 36... Bxd3 {[%clk 0:00:23]}
37. Bc3 {[%clk 0:00:06.5]} 37... b5 {[%clk 0:00:13.4]} 38. Kg2 {[%clk
0:00:06.5]} 38... Bc5 {[%clk 0:00:12.3]} 39. Bxg7 {[%clk 0:00:06.7]} 39... b4
{[%clk 0:00:12.6]} 40. Kf3 {[%clk 0:00:03.9]} 40... a5 {[%clk 0:00:12.1]} 41. h4
{[%clk 0:00:03.1]} 41... a4 {[%clk 0:00:12.5]} 42. Bf6+ {[%clk 0:00:03.1]} 42...
Kd7 {[%clk 0:00:12.4]} 43. g4 {[%clk 0:00:03.6]} 43... b3 {[%clk 0:00:10.4]} 44.
g5 {[%clk 0:00:04]} 44... Bc2 {[%clk 0:00:10.4]} 45. h5 {[%clk 0:00:02.3]} 45...
a3 {[%clk 0:00:10.7]} 46. Be5 {[%clk 0:00:01.3]} 46... b2 {[%clk 0:00:09.9]} 47.
Ba2 {[%clk 0:00:02.1]} 47... b1=Q {[%clk 0:00:09]} 48. Bxb1 {[%clk 0:00:02.9]}
48... Bxb1 {[%clk 0:00:09.9]} 49. Kg4 {[%clk 0:00:03.1]} 49... Ke6 {[%clk
0:00:09.8]} 50. Ba1 {[%clk 0:00:03.1]} 50... Be3 {[%clk 0:00:09]} 51. g6 {[%clk
0:00:03.4]} 51... hxg6 {[%clk 0:00:07.8]} 52. Kf3 {[%clk 0:00:03.2]} 52... Bc1
{[%clk 0:00:06.7]} 53. hxg6 {[%clk 0:00:03.5]} 53... Bxg6 {[%clk 0:00:05.2]} 54.
Ke2 {[%clk 0:00:03.7]} 54... Bb2 {[%clk 0:00:05.3]} 55. Kd1 {[%clk 0:00:04.3]}
55... Bxa1 {[%clk 0:00:05.6]} 56. Kc1 {[%clk 0:00:04.9]} 56... Bb2+ {[%clk
0:00:06.2]} 0-1

[Event "Early-Titled-Tuesday-Blitz-October-24-2023"]
[Site "Chess.com"]
[Date "2023.10.24"]
[Round "1"]
[White "RNG2200"]
[Black "vishwa_vijeta"]
[Result "1-0"]
[WhiteElo "2166"]
[BlackElo "2534"]
[TimeControl "180+1"]
[EndTime "8:08:16 PDT"]
[Termination "RNG2200 won by checkmate"]

1. d4 {[%clk 0:02:59.1]} 1... Nf6 {[%clk 0:02:59.6]} 2. Bg5 {[%clk 0:02:58.5]}
2... g6 {[%clk 0:02:51.3]} 3. Bxf6 {[%clk 0:02:58.4]} 3... exf6 {[%clk
0:02:52.2]} 4. e3 {[%clk 0:02:58.9]} 4... d5 {[%clk 0:02:47.8]} 5. g3 {[%clk
0:02:59.1]} 5... c6 {[%clk 0:02:45.1]} 6. c3 {[%clk 0:02:58.1]} 6... Bd6 {[%clk
0:02:42.9]} 7. Bg2 {[%clk 0:02:57.1]} 7... O-O {[%clk 0:02:42.9]} 8. Ne2 {[%clk
0:02:56.1]} 8... f5 {[%clk 0:02:42.2]} 9. h4 {[%clk 0:02:51.2]} 9... Nd7 {[%clk
0:02:37.3]} 10. Nd2 {[%clk 0:02:51.2]} 10... Nf6 {[%clk 0:02:37.2]} 11. c4
{[%clk 0:02:51.6]} 11... Bb4 {[%clk 0:02:33.9]} 12. a3 {[%clk 0:02:48]} 12...
Bxd2+ {[%clk 0:02:31.8]} 13. Qxd2 {[%clk 0:02:48.9]} 13... dxc4 {[%clk
0:02:32.5]} 14. Qb4 {[%clk 0:02:47.5]} 14... Be6 {[%clk 0:02:24.2]} 15. Nf4
{[%clk 0:02:39]} 15... Bd5 {[%clk 0:02:16.7]} 16. Nxd5 {[%clk 0:02:37.2]} 16...
cxd5 {[%clk 0:02:15.8]} 17. Qxb7 {[%clk 0:02:30]} 17... a5 {[%clk 0:01:28.1]}
18. O-O {[%clk 0:01:24.4]} 18... Rb8 {[%clk 0:01:22.1]} 19. Qa7 {[%clk
0:01:24.4]} 19... Rxb2 {[%clk 0:01:19.7]} 20. Rfb1 {[%clk 0:01:23.4]} 20... Qb8
{[%clk 0:00:59.7]} 21. Qxb8 {[%clk 0:01:10.1]} 21... Rfxb8 {[%clk 0:01:00.6]}
22. Rxb2 {[%clk 0:01:09.5]} 22... Rxb2 {[%clk 0:01:01.5]} 23. Bf3 {[%clk
0:00:45.1]} 23... Ne4 {[%clk 0:00:38.1]} 24. Bxe4 {[%clk 0:00:42.6]} 24... fxe4
{[%clk 0:00:39]} 25. Kg2 {[%clk 0:00:37.9]} 25... h5 {[%clk 0:00:36.3]} 26. a4
{[%clk 0:00:30.5]} 26... Rb4 {[%clk 0:00:31.8]} 27. Kh3 {[%clk 0:00:22.2]} 27...
c3 {[%clk 0:00:28.9]} 28. Rc1 {[%clk 0:00:20.2]} 28... Rc4 {[%clk 0:00:28.8]}
29. Rc2 {[%clk 0:00:19]} 29... Kf8 {[%clk 0:00:25.3]} 30. g4 {[%clk 0:00:19.2]}
30... hxg4+ {[%clk 0:00:23]} 31. Kxg4 {[%clk 0:00:20.1]} 31... Kg7 {[%clk
0:00:21.3]} 32. Kf4 {[%clk 0:00:18.4]} 32... Kh6 {[%clk 0:00:20.6]} 33. Ke5
{[%clk 0:00:17.8]} 33... Kh5 {[%clk 0:00:19.5]} 34. Kxd5 {[%clk 0:00:18.2]}
34... Rxa4 {[%clk 0:00:19.3]} 35. Rxc3 {[%clk 0:00:18.5]} 35... Ra2 {[%clk
0:00:18.8]} 36. Kxe4 {[%clk 0:00:17.9]} 36... Rxf2 {[%clk 0:00:19.3]} 37. d5
{[%clk 0:00:18.6]} 37... Kxh4 {[%clk 0:00:18]} 38. d6 {[%clk 0:00:19.1]} 38...
Rf6 {[%clk 0:00:17.3]} 39. d7 {[%clk 0:00:17.5]} 39... Re6+ {[%clk 0:00:15.2]}
40. Kf4 {[%clk 0:00:15.1]} 40... Rd6 {[%clk 0:00:14.1]} 41. Rc7 {[%clk
0:00:15.3]} 41... Kh5 {[%clk 0:00:12.1]} 42. Ke5 {[%clk 0:00:15.2]} 42... Rd1
{[%clk 0:00:11.4]} 43. Kf6 {[%clk 0:00:15.8]} 43... a4 {[%clk 0:00:08.1]} 44.
Kxf7 {[%clk 0:00:15.4]} 44... a3 {[%clk 0:00:08]} 45. Ke8 {[%clk 0:00:15.7]}
45... a2 {[%clk 0:00:07.3]} 46. Ra7 {[%clk 0:00:16]} 46... Rd3 {[%clk
0:00:02.7]} 47. d8=Q {[%clk 0:00:16.2]} 47... Rxd8+ {[%clk 0:00:01.6]} 48. Kxd8
{[%clk 0:00:16.3]} 48... Kg4 {[%clk 0:00:01.8]} 49. Rxa2 {[%clk 0:00:16.1]}
49... Kf3 {[%clk 0:00:02.5]} 50. Ra6 {[%clk 0:00:15.2]} 50... g5 {[%clk
0:00:03.1]} 51. Rg6 {[%clk 0:00:14.8]} 51... g4 {[%clk 0:00:03.4]} 52. e4 {[%clk
0:00:14.5]} 52... g3 {[%clk 0:00:03.2]} 53. e5 {[%clk 0:00:14.5]} 53... g2
{[%clk 0:00:04.1]} 54. e6 {[%clk 0:00:14.3]} 54... Kf2 {[%clk 0:00:05]} 55. e7
{[%clk 0:00:13.3]} 55... g1=Q {[%clk 0:00:05.9]} 56. Rxg1 {[%clk 0:00:13.1]}
56... Kxg1 {[%clk 0:00:06.8]} 57. e8=Q {[%clk 0:00:13.4]} 57... Kf2 {[%clk
0:00:06.9]} 58. Qa4 {[%clk 0:00:13.5]} 58... Kf1 {[%clk 0:00:07.8]} 59. Ke7
{[%clk 0:00:13.8]} 59... Kg1 {[%clk 0:00:08.7]} 60. Ke6 {[%clk 0:00:14.6]} 60...
Kh2 {[%clk 0:00:09.6]} 61. Ke5 {[%clk 0:00:15.5]} 61... Kg1 {[%clk 0:00:10.5]}
62. Kf4 {[%clk 0:00:16]} 62... Kh2 {[%clk 0:00:11.4]} 63. Qe4 {[%clk 0:00:16.3]}
63... Kg1 {[%clk 0:00:11.8]} 64. Qe2 {[%clk 0:00:16.1]} 64... Kh1 {[%clk
0:00:11.9]} 65. Kg3 {[%clk 0:00:16.3]} 65... Kg1 {[%clk 0:00:12.6]} 66. Qg2#
{[%clk 0:00:16.9]} 1-0

[Event "Early-Titled-Tuesday-Blitz-October-24-2023"]
[Site "Chess.com"]
[Date "2023.10.24"]
[Round "1"]
[White "lilleper1"]
[Black "GKARU"]
[Result "1-0"]
[WhiteElo "2885"]
[BlackElo "2485"]
[TimeControl "180+1"]
[EndTime "8:08:17 PDT"]
[Termination "lilleper1 won on time"]

1. c4 {[%clk 0:02:59.8]} 1... e6 {[%clk 0:03:00]} 2. Nc3 {[%clk 0:02:57.7]} 2...
d5 {[%clk 0:03:00.9]} 3. d4 {[%clk 0:02:57.3]} 3... Be7 {[%clk 0:03:00.1]} 4.
Nf3 {[%clk 0:02:56.2]} 4... Nf6 {[%clk 0:03:00.2]} 5. Bg5 {[%clk 0:02:55.2]}
5... O-O {[%clk 0:03:00.6]} 6. e3 {[%clk 0:02:54.9]} 6... b6 {[%clk 0:03:01.2]}
7. Rc1 {[%clk 0:02:53.7]} 7... Bb7 {[%clk 0:03:00.9]} 8. cxd5 {[%clk 0:02:53.6]}
8... Nxd5 {[%clk 0:03:00.8]} 9. Bxe7 {[%clk 0:02:53.5]} 9... Qxe7 {[%clk
0:03:01]} 10. Be2 {[%clk 0:02:52.3]} 10... Rc8 {[%clk 0:02:59]} 11. O-O {[%clk
0:02:41.5]} 11... Nd7 {[%clk 0:02:57.4]} 12. a3 {[%clk 0:02:39.4]} 12... c5
{[%clk 0:02:55.4]} 13. Nxd5 {[%clk 0:02:29]} 13... Bxd5 {[%clk 0:02:50]} 14. Ba6
{[%clk 0:02:28.6]} 14... Rc7 {[%clk 0:02:45.6]} 15. b4 {[%clk 0:02:20.5]} 15...
Nb8 {[%clk 0:02:05.6]} 16. Bd3 {[%clk 0:02:00.9]} 16... cxb4 {[%clk 0:02:04.3]}
17. Rxc7 {[%clk 0:01:48.2]} 17... Qxc7 {[%clk 0:02:05.2]} 18. axb4 {[%clk
0:01:48.6]} 18... a5 {[%clk 0:02:04.5]} 19. Ng5 {[%clk 0:01:38.4]} 19... h6
{[%clk 0:01:59.6]} 20. Nh3 {[%clk 0:01:30]} 20... axb4 {[%clk 0:01:54.3]} 21.
Qb1 {[%clk 0:01:25.4]} 21... b3 {[%clk 0:01:47.5]} 22. Rc1 {[%clk 0:01:14.5]}
22... Qd7 {[%clk 0:01:42.8]} 23. Nf4 {[%clk 0:01:06.9]} 23... Nc6 {[%clk
0:00:58.9]} 24. Nxd5 {[%clk 0:01:06.3]} 24... exd5 {[%clk 0:00:51.3]} 25. Bb5
{[%clk 0:00:57]} 25... Rc8 {[%clk 0:00:51]} 26. g3 {[%clk 0:00:34.4]} 26... Qe6
{[%clk 0:00:27.4]} 27. Qxb3 {[%clk 0:00:28.9]} 27... Na7 {[%clk 0:00:27.4]} 28.
Rxc8+ {[%clk 0:00:25.7]} 28... Nxc8 {[%clk 0:00:24.5]} 29. Bd3 {[%clk
0:00:25.7]} 29... g6 {[%clk 0:00:20.5]} 30. h4 {[%clk 0:00:25.2]} 30... h5
{[%clk 0:00:20.1]} 31. Qb5 {[%clk 0:00:24.8]} 31... Kg7 {[%clk 0:00:18.9]} 32.
Kg2 {[%clk 0:00:23.6]} 32... Ne7 {[%clk 0:00:18]} 33. Be2 {[%clk 0:00:22.5]}
33... Qd6 {[%clk 0:00:17.5]} 34. Bf3 {[%clk 0:00:21.7]} 34... Qe6 {[%clk
0:00:18.2]} 35. Qe8 {[%clk 0:00:19.1]} 35... Qd6 {[%clk 0:00:17.5]} 36. Qa8
{[%clk 0:00:19.1]} 36... Qe6 {[%clk 0:00:16.8]} 37. Qd8 {[%clk 0:00:19.5]} 37...
Kf6 {[%clk 0:00:14.3]} 38. Kf1 {[%clk 0:00:19.1]} 38... Kg7 {[%clk 0:00:14.7]}
39. Ke2 {[%clk 0:00:19.4]} 39... Kf6 {[%clk 0:00:14.6]} 40. Kd3 {[%clk
0:00:19.9]} 40... Kg7 {[%clk 0:00:15]} 41. Qc7 {[%clk 0:00:20.2]} 41... Nf5
{[%clk 0:00:13.1]} 42. Qe5+ {[%clk 0:00:19.1]} 42... Kf8 {[%clk 0:00:12.5]} 43.
Qh8+ {[%clk 0:00:18.4]} 43... Ke7 {[%clk 0:00:12.6]} 44. Qb8 {[%clk 0:00:19]}
44... Kf6 {[%clk 0:00:11.4]} 45. Qf4 {[%clk 0:00:18.1]} 45... Kg7 {[%clk
0:00:11.1]} 46. Qc7 {[%clk 0:00:18]} 46... Ne7 {[%clk 0:00:10.8]} 47. Qd8 {[%clk
0:00:17.8]} 47... Qf5+ {[%clk 0:00:10.4]} 48. Ke2 {[%clk 0:00:18.2]} 48... Qe6
{[%clk 0:00:09.3]} 49. Ke1 {[%clk 0:00:16.4]} 49... Kh7 {[%clk 0:00:08.6]} 50.
Be2 {[%clk 0:00:16.4]} 50... Kg7 {[%clk 0:00:08.7]} 51. Bb5 {[%clk 0:00:16.4]}
51... Nf5 {[%clk 0:00:08.5]} 52. Bd7 {[%clk 0:00:15.1]} 52... Qe4 {[%clk
0:00:07.9]} 53. Bxf5 {[%clk 0:00:15.1]} 53... Qxf5 {[%clk 0:00:06]} 54. Qxb6
{[%clk 0:00:15]} 54... Qd3 {[%clk 0:00:06]} 55. Qb2 {[%clk 0:00:14.7]} 55... Qc4
{[%clk 0:00:04.5]} 56. Qd2 {[%clk 0:00:13.3]} 56... Qb3 {[%clk 0:00:04.1]} 57.
Ke2 {[%clk 0:00:13]} 57... Qb5+ {[%clk 0:00:03.5]} 58. Kf3 {[%clk 0:00:13.1]}
58... Qf1 {[%clk 0:00:02.8]} 59. Kf4 {[%clk 0:00:12.2]} 59... Qg2 {[%clk
0:00:02.8]} 60. f3 {[%clk 0:00:12.5]} 60... Qh3 {[%clk 0:00:03.3]} 61. Qd3
{[%clk 0:00:12.9]} 61... Qe6 {[%clk 0:00:02.6]} 62. e4 {[%clk 0:00:13.3]} 1-0

[Event "Early-Titled-Tuesday-Blitz-October-24-2023"]
[Site "Chess.com"]
[Date "2023.10.24"]
[Round "1"]
[White "topin8"]
[Black "OhanyanEminChess"]
[Result "0-1"]
[WhiteElo "2438"]
[BlackElo "2805"]
[TimeControl "180+1"]
[EndTime "8:08:19 PDT"]
[Termination "OhanyanEminChess won on time"]

1. e4 {[%clk 0:03:00.9]} 1... e5 {[%clk 0:02:59.6]} 2. Nf3 {[%clk 0:03:00.3]}
2... Nc6 {[%clk 0:03:00]} 3. Bb5 {[%clk 0:03:00.2]} 3... f5 {[%clk 0:02:58.9]}
4. d3 {[%clk 0:02:57.5]} 4... fxe4 {[%clk 0:02:59.2]} 5. dxe4 {[%clk 0:02:57.5]}
5... Nf6 {[%clk 0:02:59.8]} 6. O-O {[%clk 0:02:48.4]} 6... Bc5 {[%clk
0:02:59.6]} 7. Bxc6 {[%clk 0:02:32.2]} 7... bxc6 {[%clk 0:02:59.7]} 8. Nxe5
{[%clk 0:02:31.2]} 8... O-O {[%clk 0:02:59.4]} 9. Qe2 {[%clk 0:02:19.8]} 9...
Qe7 {[%clk 0:02:52.3]} 10. Nd3 {[%clk 0:02:06]} 10... Qxe4 {[%clk 0:00:56.8]}
11. Qxe4 {[%clk 0:02:00.5]} 11... Nxe4 {[%clk 0:00:57.7]} 12. Nxc5 {[%clk
0:02:01]} 12... Nxc5 {[%clk 0:00:57.9]} 13. b3 {[%clk 0:01:58.5]} 13... d6
{[%clk 0:00:50.5]} 14. Be3 {[%clk 0:01:49.8]} 14... Ne4 {[%clk 0:00:41.8]} 15.
f3 {[%clk 0:01:40.4]} 15... Nf6 {[%clk 0:00:40.3]} 16. c4 {[%clk 0:01:39.4]}
16... a5 {[%clk 0:00:36.7]} 17. Nc3 {[%clk 0:01:38.5]} 17... Bf5 {[%clk
0:00:31.1]} 18. Rad1 {[%clk 0:01:32.6]} 18... Rfe8 {[%clk 0:00:28.7]} 19. Rfe1
{[%clk 0:01:27.8]} 19... Nd7 {[%clk 0:00:24.6]} 20. Bd4 {[%clk 0:01:23.1]} 20...
Kf7 {[%clk 0:00:16.2]} 21. Na4 {[%clk 0:00:51.2]} 21... c5 {[%clk 0:00:15.4]}
22. Bb2 {[%clk 0:00:47.2]} 22... Nf6 {[%clk 0:00:05.6]} 23. Nc3 {[%clk
0:00:40.3]} 23... Bd7 {[%clk 0:00:04.9]} 24. Rxe8 {[%clk 0:00:10.7]} 24... Bxe8
{[%clk 0:00:05.8]} 25. a4 {[%clk 0:00:08.6]} 25... Rb8 {[%clk 0:00:03.6]} 26.
Nb5 {[%clk 0:00:08.6]} 26... Rb7 {[%clk 0:00:02.3]} 27. Bc3 {[%clk 0:00:06.9]}
27... Bxb5 {[%clk 0:00:01.7]} 28. axb5 {[%clk 0:00:06.3]} 28... Ra7 {[%clk
0:00:02.2]} 29. Ra1 {[%clk 0:00:06.2]} 29... Nd7 {[%clk 0:00:02.4]} 30. Rxa5
{[%clk 0:00:06.1]} 30... Rb7 {[%clk 0:00:03]} 31. Ra8 {[%clk 0:00:04.5]} 31...
Nb6 {[%clk 0:00:03]} 32. Rh8 {[%clk 0:00:03]} 32... Kg6 {[%clk 0:00:02.6]} 33.
Rg8 {[%clk 0:00:03.2]} 33... Ra7 {[%clk 0:00:01.9]} 34. Rxg7+ {[%clk 0:00:03.4]}
34... Kf5 {[%clk 0:00:02.6]} 35. Rf7+ {[%clk 0:00:02]} 35... Ke6 {[%clk
0:00:02.6]} 36. Rxh7 {[%clk 0:00:02.5]} 36... Ra3 {[%clk 0:00:03.3]} 37. Rh6+
{[%clk 0:00:02.3]} 37... Kf7 {[%clk 0:00:03.3]} 38. Rh7+ {[%clk 0:00:02.8]}
38... Kg6 {[%clk 0:00:03.5]} 39. Rxc7 {[%clk 0:00:03.3]} 39... Rxb3 {[%clk
0:00:03.4]} 40. Ba5 {[%clk 0:00:02.9]} 40... Nxc4 {[%clk 0:00:03.9]} 41. Be1
{[%clk 0:00:03.4]} 41... Rxb5 {[%clk 0:00:03.8]} 42. Rc6 {[%clk 0:00:03.3]}
42... Kf5 {[%clk 0:00:03.7]} 43. g4+ {[%clk 0:00:03.5]} 43... Kf4 {[%clk
0:00:03.7]} 44. Rc8 {[%clk 0:00:01.4]} 44... Kxf3 {[%clk 0:00:03.8]} 45. Rf8+
{[%clk 0:00:01.7]} 45... Kxg4 {[%clk 0:00:03.6]} 46. Rg8+ {[%clk 0:00:02.3]}
46... Kf3 {[%clk 0:00:03.7]} 47. Rf8+ {[%clk 0:00:02.8]} 47... Ke2 {[%clk
0:00:04.4]} 48. Bf2 {[%clk 0:00:03]} 48... d5 {[%clk 0:00:03]} 49. Re8+ {[%clk
0:00:03.1]} 49... Kf3 {[%clk 0:00:03.7]} 50. Rf8+ {[%clk 0:00:03.4]} 50... Ke2
{[%clk 0:00:04.4]} 51. Re8+ {[%clk 0:00:03.7]} 51... Kd3 {[%clk 0:00:05.1]} 52.
h4 {[%clk 0:00:03.5]} 52... d4 {[%clk 0:00:04.8]} 53. h5 {[%clk 0:00:03.8]}
53... Rb6 {[%clk 0:00:04.3]} 54. Rh8 {[%clk 0:00:02.2]} 54... Ne3 {[%clk
0:00:03.4]} 55. Rc8 {[%clk 0:00:01.5]} 55... c4 {[%clk 0:00:03.2]} 56. Rd8
{[%clk 0:00:01.5]} 56... c3 {[%clk 0:00:03.4]} 57. Bxe3 {[%clk 0:00:01.4]} 57...
Kxe3 {[%clk 0:00:04.3]} 58. Re8+ {[%clk 0:00:01.8]} 58... Kd2 {[%clk 0:00:04.6]}
0-1

[Event "Early-Titled-Tuesday-Blitz-October-24-2023"]
[Site "Chess.com"]
[Date "2023.10.24"]
[Round "1"]
[White "zeebraa"]
[Black "draksbg"]
[Result "0-1"]
[WhiteElo "2272"]
[BlackElo "2602"]
[TimeControl "180+1"]
[EndTime "8:08:24 PDT"]
[Termination "draksbg won on time"]

1. d4 {[%clk 0:03:00]} 1... Nf6 {[%clk 0:02:59.4]} 2. Nf3 {[%clk 0:03:00.6]}
2... g6 {[%clk 0:02:59.6]} 3. Nc3 {[%clk 0:02:59.9]} 3... d5 {[%clk 0:02:59.4]}
4. Bf4 {[%clk 0:02:59.3]} 4... Bg7 {[%clk 0:02:58.8]} 5. e3 {[%clk 0:02:59.9]}
5... O-O {[%clk 0:02:56.5]} 6. Be2 {[%clk 0:03:00.4]} 6... b6 {[%clk 0:02:56.2]}
7. Ne5 {[%clk 0:02:58.8]} 7... Bb7 {[%clk 0:02:56.1]} 8. h4 {[%clk 0:02:59.2]}
8... h6 {[%clk 0:02:49.6]} 9. g4 {[%clk 0:02:55.6]} 9... Nfd7 {[%clk 0:02:49.5]}
10. Nd3 {[%clk 0:02:52.8]} 10... Re8 {[%clk 0:02:46.7]} 11. Bf3 {[%clk
0:02:44.8]} 11... c6 {[%clk 0:02:06.4]} 12. Qd2 {[%clk 0:02:36]} 12... e5 {[%clk
0:02:05.7]} 13. dxe5 {[%clk 0:02:34.2]} 13... Nxe5 {[%clk 0:02:06.6]} 14. Nxe5
{[%clk 0:02:33.1]} 14... Bxe5 {[%clk 0:02:06.9]} 15. Bxe5 {[%clk 0:02:33]} 15...
Rxe5 {[%clk 0:02:07]} 16. O-O-O {[%clk 0:02:33.4]} 16... Nd7 {[%clk 0:02:07.2]}
17. h5 {[%clk 0:02:27.6]} 17... g5 {[%clk 0:02:07.2]} 18. Be2 {[%clk 0:02:25.1]}
18... Qe7 {[%clk 0:02:05.5]} 19. Bd3 {[%clk 0:02:23.6]} 19... Nc5 {[%clk
0:02:05.1]} 20. Rhe1 {[%clk 0:02:18.2]} 20... Re8 {[%clk 0:02:05.4]} 21. Bf5
{[%clk 0:02:16.3]} 21... a5 {[%clk 0:01:57]} 22. Ne2 {[%clk 0:02:12.1]} 22... a4
{[%clk 0:01:50.8]} 23. a3 {[%clk 0:02:09.4]} 23... Qf6 {[%clk 0:01:47.9]} 24.
Nd4 {[%clk 0:02:09.3]} 24... Ne4 {[%clk 0:01:33.9]} 25. Qe2 {[%clk 0:01:41.3]}
25... c5 {[%clk 0:01:31.8]} 26. Nb5 {[%clk 0:01:35.8]} 26... Ba6 {[%clk
0:01:31.6]} 27. f4 {[%clk 0:01:30.1]} 27... R5e7 {[%clk 0:01:30.1]} 28. Rxd5
{[%clk 0:01:14.8]} 28... Ng3 {[%clk 0:01:21.1]} 29. Qf2 {[%clk 0:01:05.4]} 29...
gxf4 {[%clk 0:01:19.7]} 30. Qxf4 {[%clk 0:01:01.2]} 30... Bxb5 {[%clk
0:01:17.2]} 31. Qxg3 {[%clk 0:01:00.3]} 31... Bc4 {[%clk 0:01:13.5]} 32. Rd6
{[%clk 0:00:59]} 32... Qg5 {[%clk 0:01:14.2]} 33. Kb1 {[%clk 0:00:38.7]} 33...
Rxe3 {[%clk 0:01:14]} 34. Rxe3 {[%clk 0:00:37.5]} 34... Rxe3 {[%clk 0:01:14.9]}
35. Qf2 {[%clk 0:00:28.8]} 35... Re2 {[%clk 0:01:14.9]} 36. Qg1 {[%clk
0:00:22.7]} 36... Qf4 {[%clk 0:01:05.2]} 37. Rd1 {[%clk 0:00:22.5]} 37... Kg7
{[%clk 0:01:02.9]} 38. Qf1 {[%clk 0:00:16.7]} 38... Qe3 {[%clk 0:01:00.2]} 39.
Qh1 {[%clk 0:00:13]} 39... b5 {[%clk 0:00:56.5]} 40. g5 {[%clk 0:00:09.2]} 40...
hxg5 {[%clk 0:00:54.9]} 41. h6+ {[%clk 0:00:09.1]} 41... Kf6 {[%clk 0:00:55]}
42. Qc6+ {[%clk 0:00:05.7]} 42... Kxf5 {[%clk 0:00:55]} 43. Qd7+ {[%clk
0:00:03.9]} 43... Kf4 {[%clk 0:00:54.5]} 44. Rf1+ {[%clk 0:00:04.3]} 44... Rf2
{[%clk 0:00:54.9]} 45. Qd6+ {[%clk 0:00:03.8]} 45... Kf3 {[%clk 0:00:54.6]} 46.
Qf6+ {[%clk 0:00:02.8]} 46... Kg2 {[%clk 0:00:54.2]} 47. Qxf2+ {[%clk
0:00:03.3]} 47... Qxf2 {[%clk 0:00:54.7]} 48. Rxf2+ {[%clk 0:00:04.1]} 48...
Kxf2 {[%clk 0:00:55.6]} 49. h7 {[%clk 0:00:04.8]} 49... f5 {[%clk 0:00:56.2]}
50. h8=Q {[%clk 0:00:05.7]} 50... f4 {[%clk 0:00:56.9]} 51. Qe5 {[%clk
0:00:06.4]} 51... f3 {[%clk 0:00:56.6]} 52. Qxg5 {[%clk 0:00:07]} 52... Ke2
{[%clk 0:00:57.5]} 53. Qxc5 {[%clk 0:00:07.6]} 53... f2 {[%clk 0:00:58.4]} 54.
Qe5+ {[%clk 0:00:08.1]} 54... Kd1 {[%clk 0:00:58.6]} 55. Qd4+ {[%clk 0:00:08.2]}
55... Ke2 {[%clk 0:00:58.6]} 56. Qe4+ {[%clk 0:00:08.5]} 56... Kd2 {[%clk
0:00:59]} 57. Qf4+ {[%clk 0:00:08.8]} 57... Ke1 {[%clk 0:00:59.1]} 58. Qe4+
{[%clk 0:00:08.5]} 58... Be2 {[%clk 0:00:58.9]} 59. Qh4 {[%clk 0:00:09.2]} 59...
Bf3 {[%clk 0:00:58.4]} 60. b3 {[%clk 0:00:08]} 60... Ke2 {[%clk 0:00:58.2]} 61.
Qh2 {[%clk 0:00:06.6]} 61... Ke3 {[%clk 0:00:57]} 62. Qe5+ {[%clk 0:00:06.7]}
62... Be4 {[%clk 0:00:57.7]} 63. Qg5+ {[%clk 0:00:06.8]} 63... Ke2 {[%clk
0:00:57.8]} 64. Qg4+ {[%clk 0:00:07]} 64... Bf3 {[%clk 0:00:58.5]} 65. Qe6+
{[%clk 0:00:06.8]} 65... Kd2 {[%clk 0:00:58.6]} 66. Qd6+ {[%clk 0:00:06.1]}
66... Ke1 {[%clk 0:00:59.3]} 67. Qe5+ {[%clk 0:00:05.9]} 67... Be2 {[%clk
0:00:59.3]} 68. Qg3 {[%clk 0:00:05.4]} 68... axb3 {[%clk 0:00:58.4]} 69. cxb3
{[%clk 0:00:05.3]} 69... b4 {[%clk 0:00:59]} 0-1